[Event "***Titled Tuesday 3|2 Blitz"]
[Site "Chess.com"]
[Date "2017.02.07"]
[Round "1"]
[White "tigra"]
[Black "Evgeny81"]
[Result "1-0"]
[WhiteElo "2546"]
[BlackElo "2218"]
[TimeControl "180+2"]
[EndTime "13:07:05 PST"]
[Termination "tigra won by resignation"]

1. e4 {[%clk 0:03:02]} 1... c6 {[%clk 0:03:00.8]} 2. d4 {[%clk 0:03:01.2]} 2...
d5 {[%clk 0:02:57.7]} 3. Nc3 {[%clk 0:03:01.6]} 3... dxe4 {[%clk 0:02:58.5]} 4.
Nxe4 {[%clk 0:03:03.5]} 4... Bf5 {[%clk 0:02:59.6]} 5. Ng3 {[%clk 0:03:02.9]}
5... Bg6 {[%clk 0:03:00.7]} 6. N3e2 {[%clk 0:03:04.4]} 6... e6 {[%clk
0:02:57.2]} 7. Nf4 {[%clk 0:03:05.1]} 7... Bd6 {[%clk 0:02:58.6]} 8. Nxg6 {[%clk
0:03:03.3]} 8... hxg6 {[%clk 0:02:59.5]} 9. Nf3 {[%clk 0:03:05.2]} 9... Nf6
{[%clk 0:02:59.9]} 10. g3 {[%clk 0:02:58.8]} 10... Nbd7 {[%clk 0:02:56.7]} 11.
Bg2 {[%clk 0:02:59]} 11... Qc7 {[%clk 0:02:57.5]} 12. O-O {[%clk 0:02:59.1]}
12... O-O-O {[%clk 0:02:59]} 13. c3 {[%clk 0:02:49.5]} 13... e5 {[%clk
0:02:55.6]} 14. Qb3 {[%clk 0:02:48.2]} 14... Rdf8 {[%clk 0:02:44]} 15. Re1
{[%clk 0:02:17.7]} 15... exd4 {[%clk 0:02:40.1]} 16. cxd4 {[%clk 0:02:18.5]}
16... Nd5 {[%clk 0:02:35.5]} 17. Bd2 {[%clk 0:02:16.5]} 17... Re8 {[%clk
0:02:27.4]} 18. Ng5 {[%clk 0:02:10.4]} 18... N7f6 {[%clk 0:02:20.8]} 19. Rac1
{[%clk 0:02:10.2]} 19... Kb8 {[%clk 0:02:17.2]} 20. Ne4 {[%clk 0:02:06.4]} 20...
Nxe4 {[%clk 0:02:13.8]} 21. Bxe4 {[%clk 0:02:08.3]} 21... Nf6 {[%clk 0:01:59.9]}
22. Rxc6 {[%clk 0:01:42.4]} 22... Nxe4 {[%clk 0:01:25.2]} 23. Rxc7 {[%clk
0:01:42.7]} 23... Bxc7 {[%clk 0:01:26.9]} 24. Bc1 {[%clk 0:01:15.3]} 24... f5
{[%clk 0:01:19.7]} 25. f3 {[%clk 0:01:08.9]} 25... Nf6 {[%clk 0:01:08.9]} 26.
Rxe8+ {[%clk 0:01:08.9]} 26... Rxe8 {[%clk 0:01:10.4]} 27. Kf1 {[%clk
0:01:09.6]} 27... Re7 {[%clk 0:00:59.9]} 28. Bg5 {[%clk 0:01:08.9]} 28... Bb6
{[%clk 0:00:48.3]} 29. Bxf6 {[%clk 0:01:08.8]} 29... gxf6 {[%clk 0:00:45.5]} 30.
Qg8+ {[%clk 0:01:09.1]} 30... Kc7 {[%clk 0:00:46.4]} 31. Qxg6 {[%clk 0:01:10]}
31... Bxd4 {[%clk 0:00:47.3]} 32. Qxf5 {[%clk 0:01:10.8]} 1-0

[Event "***Titled Tuesday 3|2 Blitz"]
[Site "Chess.com"]
[Date "2017.02.07"]
[Round "1"]
[White "Iball95"]
[Black "lucasmito"]
[Result "1-0"]
[WhiteElo "2412"]
[BlackElo "1769"]
[TimeControl "180+2"]
[EndTime "13:07:10 PST"]
[Termination "Iball95 won by checkmate"]

1. e4 {[%clk 0:03:02]} 1... e5 {[%clk 0:02:59.2]} 2. Nf3 {[%clk 0:03:00.7]} 2...
Nc6 {[%clk 0:02:58.6]} 3. Nc3 {[%clk 0:03:02.1]} 3... Nf6 {[%clk 0:02:58.1]} 4.
Bb5 {[%clk 0:03:03.6]} 4... Bc5 {[%clk 0:02:21.9]} 5. O-O {[%clk 0:03:03.8]}
5... d6 {[%clk 0:02:19.6]} 6. d4 {[%clk 0:03:04.5]} 6... exd4 {[%clk 0:02:17.6]}
7. Nxd4 {[%clk 0:03:06.1]} 7... Bd7 {[%clk 0:02:16.9]} 8. Nb3 {[%clk 0:03:07]}
8... Bb6 {[%clk 0:02:10.9]} 9. Bg5 {[%clk 0:03:08.5]} 9... a6 {[%clk 0:02:05.7]}
10. Bd3 {[%clk 0:03:08]} 10... h6 {[%clk 0:02:04.1]} 11. Bh4 {[%clk 0:03:08.6]}
11... g5 {[%clk 0:02:03]} 12. Bg3 {[%clk 0:03:09.8]} 12... O-O {[%clk
0:02:01.3]} 13. Kh1 {[%clk 0:03:10.1]} 13... Re8 {[%clk 0:01:53.1]} 14. f4
{[%clk 0:03:10]} 14... Bg4 {[%clk 0:01:34.4]} 15. Qd2 {[%clk 0:03:09.1]} 15...
Nh5 {[%clk 0:01:33.8]} 16. Nd5 {[%clk 0:03:04.2]} 16... Be6 {[%clk 0:01:26.7]}
17. Nxb6 {[%clk 0:02:54.3]} 17... cxb6 {[%clk 0:01:25.6]} 18. Qf2 {[%clk
0:02:48.5]} 18... Rc8 {[%clk 0:01:23.6]} 19. Rad1 {[%clk 0:02:47.5]} 19... Nxf4
{[%clk 0:01:17.9]} 20. Bxf4 {[%clk 0:02:47.5]} 20... gxf4 {[%clk 0:01:18.2]} 21.
Qxf4 {[%clk 0:02:49.4]} 21... Qg5 {[%clk 0:01:15.3]} 22. Qf2 {[%clk 0:02:34.1]}
22... Ne5 {[%clk 0:01:07.2]} 23. Qxb6 {[%clk 0:02:30.6]} 23... Nxd3 {[%clk
0:01:00.5]} 24. cxd3 {[%clk 0:02:30.5]} 24... Rc2 {[%clk 0:01:00.9]} 25. Rf2
{[%clk 0:02:31.3]} 25... Bxb3 {[%clk 0:00:57.1]} 26. axb3 {[%clk 0:02:29.3]}
26... Rxf2 {[%clk 0:00:54.7]} 27. Qxf2 {[%clk 0:02:31.2]} 27... d5 {[%clk
0:00:39.8]} 28. Rf1 {[%clk 0:02:23]} 28... Re7 {[%clk 0:00:23.9]} 29. h3 {[%clk
0:02:17]} 29... dxe4 {[%clk 0:00:22.3]} 30. dxe4 {[%clk 0:02:18.9]} 30... Qe5
{[%clk 0:00:18.4]} 31. Re1 {[%clk 0:02:19.7]} 31... f5 {[%clk 0:00:18.2]} 32.
Rf1 {[%clk 0:02:16.1]} 32... Qxe4 {[%clk 0:00:15.3]} 33. Qxf5 {[%clk 0:02:11.5]}
33... Qxf5 {[%clk 0:00:15.5]} 34. Rxf5 {[%clk 0:02:13.4]} 34... Re1+ {[%clk
0:00:16.8]} 35. Kh2 {[%clk 0:02:14.2]} 35... Re2 {[%clk 0:00:18.5]} 36. Rf6
{[%clk 0:02:14.6]} 36... Kg7 {[%clk 0:00:17.6]} 37. Rb6 {[%clk 0:02:15.1]} 37...
Rxb2 {[%clk 0:00:18.8]} 38. Rxb7+ {[%clk 0:02:16.4]} 38... Kg6 {[%clk
0:00:20.5]} 39. Rb6+ {[%clk 0:02:17.8]} 39... Kh5 {[%clk 0:00:21.5]} 40. Kg3
{[%clk 0:02:15.8]} 40... a5 {[%clk 0:00:20.8]} 41. Kf3 {[%clk 0:02:15.3]} 41...
a4 {[%clk 0:00:21.8]} 42. Rb5+ {[%clk 0:02:15]} 42... Kh4 {[%clk 0:00:22]} 43.
g3+ {[%clk 0:02:15.9]} 43... Kxh3 {[%clk 0:00:21.6]} 44. Rh5# {[%clk 0:02:17.8]}
1-0

[Event "***Titled Tuesday 3|2 Blitz"]
[Site "Chess.com"]
[Date "2017.02.07"]
[Round "1"]
[White "Incognito_Knight"]
[Black "Sethu0025"]
[Result "0-1"]
[WhiteElo "2272"]
[BlackElo "2551"]
[TimeControl "180+2"]
[EndTime "13:07:43 PST"]
[Termination "Sethu0025 won by resignation"]

1. e4 {[%clk 0:03:02]} 1... c5 {[%clk 0:03:00.2]} 2. Nf3 {[%clk 0:03:02.6]} 2...
e6 {[%clk 0:02:59.3]} 3. d4 {[%clk 0:03:03.4]} 3... cxd4 {[%clk 0:03:00.2]} 4.
Nxd4 {[%clk 0:03:05.3]} 4... Nc6 {[%clk 0:03:01.8]} 5. Nc3 {[%clk 0:03:05.4]}
5... Qc7 {[%clk 0:03:02.8]} 6. Be3 {[%clk 0:03:06.6]} 6... a6 {[%clk 0:03:03.6]}
7. Qf3 {[%clk 0:03:07.9]} 7... d6 {[%clk 0:03:04.2]} 8. O-O-O {[%clk 0:03:04.3]}
8... Bd7 {[%clk 0:03:04.6]} 9. Qg3 {[%clk 0:03:03.3]} 9... Nf6 {[%clk
0:03:03.8]} 10. Be2 {[%clk 0:02:56.8]} 10... b5 {[%clk 0:03:00.2]} 11. a3 {[%clk
0:02:45.7]} 11... Rc8 {[%clk 0:02:55.4]} 12. Kb1 {[%clk 0:02:35.2]} 12... Qb8
{[%clk 0:02:38.4]} 13. f4 {[%clk 0:02:28.7]} 13... b4 {[%clk 0:02:30.6]} 14.
axb4 {[%clk 0:02:21.5]} 14... Nxb4 {[%clk 0:02:31.6]} 15. e5 {[%clk 0:02:00.1]}
15... Nfd5 {[%clk 0:02:27]} 16. Nxd5 {[%clk 0:01:59.4]} 16... Nxd5 {[%clk
0:02:26.9]} 17. Bd2 {[%clk 0:01:55.7]} 17... dxe5 {[%clk 0:02:16.6]} 18. fxe5
{[%clk 0:01:57.6]} 18... Bb4 {[%clk 0:02:09.1]} 19. Qxg7 {[%clk 0:01:45.6]}
19... Bxd2 {[%clk 0:01:53.6]} 20. Rxd2 {[%clk 0:01:36.1]} 20... Rf8 {[%clk
0:01:51.5]} 21. Kc1 {[%clk 0:01:20.7]} 21... Qb4 {[%clk 0:01:50.3]} 22. Nf5
{[%clk 0:01:07.7]} 22... exf5 {[%clk 0:01:49.7]} 23. Rxd5 {[%clk 0:01:08.6]}
23... Qa4 {[%clk 0:01:44.8]} 24. Bd3 {[%clk 0:00:39.1]} 24... Qa1+ {[%clk
0:01:43.4]} 25. Kd2 {[%clk 0:00:40.3]} 25... Qxh1 {[%clk 0:01:44.2]} 26. Bxa6
{[%clk 0:00:29.9]} 26... Rc6 {[%clk 0:00:47.6]} 27. Bb5 {[%clk 0:00:27.9]} 27...
Rg6 {[%clk 0:00:44.9]} 28. Bxd7+ {[%clk 0:00:21.2]} 28... Ke7 {[%clk 0:00:45.9]}
29. Qxh7 {[%clk 0:00:22.4]} 29... Qxg2+ {[%clk 0:00:45.8]} 30. Kc3 {[%clk
0:00:22.4]} 30... Qxd5 {[%clk 0:00:45]} 0-1

[Event "***Titled Tuesday 3|2 Blitz"]
[Site "Chess.com"]
[Date "2017.02.07"]
[Round "1"]
[White "TomsKantans"]
[Black "Jahonas"]
[Result "1-0"]
[WhiteElo "2498"]
[BlackElo "2142"]
[TimeControl "180+2"]
[EndTime "13:07:43 PST"]
[Termination "TomsKantans won by resignation"]

1. e4 {[%clk 0:03:02]} 1... c5 {[%clk 0:03:00]} 2. Nf3 {[%clk 0:02:59.7]} 2...
d6 {[%clk 0:03:00.5]} 3. Bb5+ {[%clk 0:02:57.5]} 3... Bd7 {[%clk 0:03:00.7]} 4.
a4 {[%clk 0:02:57.9]} 4... a6 {[%clk 0:03:00.7]} 5. Bxd7+ {[%clk 0:02:58.4]}
5... Qxd7 {[%clk 0:03:01.8]} 6. O-O {[%clk 0:02:59.8]} 6... Nc6 {[%clk
0:03:02.4]} 7. d3 {[%clk 0:02:59.4]} 7... e6 {[%clk 0:03:03.4]} 8. Be3 {[%clk
0:02:55]} 8... Nf6 {[%clk 0:03:04.3]} 9. h3 {[%clk 0:02:56.2]} 9... Be7 {[%clk
0:03:05.3]} 10. c3 {[%clk 0:02:55.9]} 10... O-O {[%clk 0:03:05.9]} 11. Nbd2
{[%clk 0:02:57.3]} 11... Qc7 {[%clk 0:03:02.9]} 12. d4 {[%clk 0:02:52.4]} 12...
d5 {[%clk 0:02:47.4]} 13. e5 {[%clk 0:02:13.5]} 13... Ne4 {[%clk 0:02:43.6]} 14.
Nxe4 {[%clk 0:02:13.5]} 14... dxe4 {[%clk 0:02:43.8]} 15. Nd2 {[%clk 0:02:14.9]}
15... Rad8 {[%clk 0:02:36.7]} 16. Nxe4 {[%clk 0:01:48.6]} 16... cxd4 {[%clk
0:02:22.7]} 17. cxd4 {[%clk 0:01:50.5]} 17... Nxe5 {[%clk 0:02:07.4]} 18. Rc1
{[%clk 0:01:14.3]} 18... Qa5 {[%clk 0:01:59.2]} 19. Qb3 {[%clk 0:01:10.9]} 19...
Qd5 {[%clk 0:01:28.1]} 20. Qxd5 {[%clk 0:01:07.6]} 20... exd5 {[%clk 0:01:28.3]}
21. dxe5 {[%clk 0:01:05]} 21... dxe4 {[%clk 0:01:28.9]} 22. Rc7 {[%clk
0:01:04.9]} 22... Rfe8 {[%clk 0:01:17.5]} 23. Rxb7 {[%clk 0:01:06.1]} 23... Bf8
{[%clk 0:01:16.1]} 24. Rc1 {[%clk 0:00:30.4]} 24... Rxe5 {[%clk 0:01:13.5]} 25.
g4 {[%clk 0:00:17.7]} 25... Re7 {[%clk 0:01:09.2]} 26. Rb6 {[%clk 0:00:15.7]}
26... Re6 {[%clk 0:01:06.5]} 27. Rxe6 {[%clk 0:00:16.8]} 27... fxe6 {[%clk
0:01:06.6]} 28. Rc6 {[%clk 0:00:18.7]} 28... Rb8 {[%clk 0:01:06.3]} 29. Rxa6
{[%clk 0:00:19.1]} 29... Rxb2 {[%clk 0:01:07.1]} 30. Rxe6 {[%clk 0:00:20.8]}
30... Rb4 {[%clk 0:01:06]} 31. a5 {[%clk 0:00:20.1]} 31... Ra4 {[%clk
0:01:06.2]} 32. a6 {[%clk 0:00:21.6]} 32... Kf7 {[%clk 0:01:07.5]} 33. Rc6
{[%clk 0:00:22.4]} 33... Be7 {[%clk 0:00:57.5]} 34. a7 {[%clk 0:00:23]} 1-0

[Event "***Titled Tuesday 3|2 Blitz"]
[Site "Chess.com"]
[Date "2017.02.07"]
[Round "1"]
[White "Evgeny_Levin"]
[Black "Boryboy"]
[Result "1-0"]
[WhiteElo "2752"]
[BlackElo "2399"]
[TimeControl "180+2"]
[EndTime "13:07:45 PST"]
[Termination "Evgeny_Levin won by resignation"]

1. d4 {[%clk 0:03:02]} 1... e6 {[%clk 0:03:00.7]} 2. c4 {[%clk 0:03:01]} 2... d5
{[%clk 0:03:00]} 3. Nc3 {[%clk 0:03:00.9]} 3... a6 {[%clk 0:03:00.8]} 4. cxd5
{[%clk 0:02:56.7]} 4... exd5 {[%clk 0:03:01.6]} 5. Bf4 {[%clk 0:02:58]} 5... Bd6
{[%clk 0:03:01.8]} 6. Bg3 {[%clk 0:02:54.2]} 6... Nf6 {[%clk 0:03:00]} 7. e3
{[%clk 0:02:54.2]} 7... O-O {[%clk 0:02:55.6]} 8. Bd3 {[%clk 0:02:52.6]} 8...
Re8 {[%clk 0:02:56.2]} 9. Nf3 {[%clk 0:02:51.2]} 9... c6 {[%clk 0:02:56.1]} 10.
O-O {[%clk 0:02:42]} 10... Ne4 {[%clk 0:02:56.9]} 11. Bxe4 {[%clk 0:02:37.8]}
11... dxe4 {[%clk 0:02:54.3]} 12. Nd2 {[%clk 0:02:39.1]} 12... Bxg3 {[%clk
0:02:47.5]} 13. fxg3 {[%clk 0:02:33.3]} 13... f5 {[%clk 0:02:47.9]} 14. g4
{[%clk 0:02:27.5]} 14... fxg4 {[%clk 0:02:43.1]} 15. Ndxe4 {[%clk 0:02:27.1]}
15... Qe7 {[%clk 0:02:38.6]} 16. Rf4 {[%clk 0:01:56.6]} 16... Be6 {[%clk
0:02:16.2]} 17. d5 {[%clk 0:01:52.4]} 17... cxd5 {[%clk 0:02:08.1]} 18. Nxd5
{[%clk 0:01:54.3]} 18... Qd8 {[%clk 0:02:03.8]} 19. Ndf6+ {[%clk 0:01:44.9]}
19... gxf6 {[%clk 0:01:57.8]} 20. Nxf6+ {[%clk 0:01:46.8]} 20... Kh8 {[%clk
0:01:40.7]} 21. Nxe8 {[%clk 0:01:45.5]} 21... Qxe8 {[%clk 0:01:42.2]} 22. Qd6
{[%clk 0:01:28.8]} 22... Nc6 {[%clk 0:01:08]} 23. Re4 {[%clk 0:01:19.2]} 23...
Nd8 {[%clk 0:01:08.3]} 24. Rf1 {[%clk 0:01:08.3]} 24... Kg7 {[%clk 0:00:54.8]}
25. Qe5+ {[%clk 0:01:02.5]} 25... Kg8 {[%clk 0:00:56.2]} 26. Rxg4+ {[%clk
0:00:59.6]} 26... Qg6 {[%clk 0:00:45.6]} 27. Rxg6+ {[%clk 0:00:58.4]} 27... hxg6
{[%clk 0:00:47.5]} 28. Rf6 {[%clk 0:00:57.9]} 28... Bf7 {[%clk 0:00:47.5]} 29.
h4 {[%clk 0:00:56]} 29... Rc8 {[%clk 0:00:48.3]} 30. h5 {[%clk 0:00:54.6]} 30...
gxh5 {[%clk 0:00:49.4]} 31. Qg5+ {[%clk 0:00:54.5]} 31... Kf8 {[%clk 0:00:50.9]}
32. Qxh5 {[%clk 0:00:53.1]} 32... Rc1+ {[%clk 0:00:51.9]} 33. Kh2 {[%clk
0:00:52]} 33... Ke7 {[%clk 0:00:41]} 34. Qe5+ {[%clk 0:00:50.6]} 34... Be6
{[%clk 0:00:42.2]} 35. Rh6 {[%clk 0:00:45.3]} 35... Kd7 {[%clk 0:00:41.6]} 36.
Qd4+ {[%clk 0:00:44.5]} 36... Kc8 {[%clk 0:00:40.2]} 37. Rh8 {[%clk 0:00:44.7]}
1-0

[Event "***Titled Tuesday 3|2 Blitz"]
[Site "Chess.com"]
[Date "2017.02.07"]
[Round "1"]
[White "AdrianaNikolova"]
[Black "Noukii"]
[Result "0-1"]
[WhiteElo "2324"]
[BlackElo "2612"]
[TimeControl "180+2"]
[EndTime "13:07:47 PST"]
[Termination "Noukii won by resignation"]

1. e4 {[%clk 0:03:01.9]} 1... e5 {[%clk 0:02:09.2]} 2. Nf3 {[%clk 0:03:01.2]}
2... Nc6 {[%clk 0:02:09.5]} 3. Nc3 {[%clk 0:03:00.6]} 3... Nf6 {[%clk
0:02:10.4]} 4. Bb5 {[%clk 0:03:01.3]} 4... Bc5 {[%clk 0:02:11.2]} 5. O-O {[%clk
0:02:59.6]} 5... Nd4 {[%clk 0:02:11.8]} 6. Nxd4 {[%clk 0:02:56.8]} 6... Bxd4
{[%clk 0:02:12.6]} 7. d3 {[%clk 0:02:55]} 7... c6 {[%clk 0:02:12.3]} 8. Ba4
{[%clk 0:02:55.1]} 8... d6 {[%clk 0:02:10.8]} 9. Ne2 {[%clk 0:02:55.6]} 9... Bb6
{[%clk 0:02:09.3]} 10. Bg5 {[%clk 0:02:53.3]} 10... h6 {[%clk 0:02:10]} 11. Bh4
{[%clk 0:02:54]} 11... g5 {[%clk 0:02:03.9]} 12. Bg3 {[%clk 0:02:54.7]} 12... h5
{[%clk 0:02:05.6]} 13. h4 {[%clk 0:02:49.6]} 13... Ng4 {[%clk 0:02:05.2]} 14. d4
{[%clk 0:02:36.5]} 14... gxh4 {[%clk 0:02:02.7]} 15. Bh2 {[%clk 0:02:37.7]}
15... Qf6 {[%clk 0:01:42]} 16. c3 {[%clk 0:02:16.2]} 16... Rg8 {[%clk
0:01:35.2]} 17. Qd3 {[%clk 0:02:10.6]} 17... Bd7 {[%clk 0:01:19.5]} 18. f3
{[%clk 0:02:05.5]} 18... Nxh2 {[%clk 0:01:19.6]} 19. Kxh2 {[%clk 0:02:07.4]}
19... O-O-O {[%clk 0:01:13.5]} 20. d5 {[%clk 0:01:31.4]} 20... Rg3 {[%clk
0:00:25.8]} 21. dxc6 {[%clk 0:01:10.7]} 21... bxc6 {[%clk 0:00:27.7]} 22. Rg1
{[%clk 0:00:39.6]} 22... Rdg8 {[%clk 0:00:28]} 23. b4 {[%clk 0:00:33.9]} 23...
Qe6 {[%clk 0:00:24.3]} 24. Nxg3 {[%clk 0:00:25]} 24... hxg3+ {[%clk 0:00:24.6]}
25. Kh1 {[%clk 0:00:25.2]} 25... Qf6 {[%clk 0:00:26]} 0-1

[Event "***Titled Tuesday 3|2 Blitz"]
[Site "Chess.com"]
[Date "2017.02.07"]
[Round "1"]
[White "Cruel_Yaro"]
[Black "destroyer305"]
[Result "1-0"]
[WhiteElo "2603"]
[BlackElo "2319"]
[TimeControl "180+2"]
[EndTime "13:07:50 PST"]
[Termination "Cruel_Yaro won by resignation"]

1. e4 {[%clk 0:03:02]} 1... c5 {[%clk 0:03:01.1]} 2. Nf3 {[%clk 0:03:01.9]} 2...
d6 {[%clk 0:03:01.5]} 3. d4 {[%clk 0:03:01.2]} 3... cxd4 {[%clk 0:03:02.9]} 4.
Nxd4 {[%clk 0:03:03.1]} 4... Nf6 {[%clk 0:03:04.6]} 5. Nc3 {[%clk 0:03:04.3]}
5... g6 {[%clk 0:03:06.3]} 6. Be3 {[%clk 0:03:04.4]} 6... Bg7 {[%clk 0:03:07.6]}
7. f3 {[%clk 0:03:05.7]} 7... O-O {[%clk 0:03:09]} 8. Qd2 {[%clk 0:03:07.3]}
8... Nc6 {[%clk 0:03:10.5]} 9. Bc4 {[%clk 0:03:08.7]} 9... Bd7 {[%clk
0:03:10.7]} 10. g4 {[%clk 0:03:09.6]} 10... Rc8 {[%clk 0:03:12.3]} 11. Be2
{[%clk 0:03:10.1]} 11... Nxd4 {[%clk 0:03:07.5]} 12. Bxd4 {[%clk 0:03:10.8]}
12... Qa5 {[%clk 0:03:07.5]} 13. O-O-O {[%clk 0:02:47.9]} 13... b5 {[%clk
0:03:06.1]} 14. Kb1 {[%clk 0:02:43.8]} 14... b4 {[%clk 0:02:59.8]} 15. Nd5
{[%clk 0:02:35.5]} 15... Nxd5 {[%clk 0:03:00.9]} 16. exd5 {[%clk 0:02:33.8]}
16... Ba4 {[%clk 0:02:37.1]} 17. b3 {[%clk 0:02:22.3]} 17... Bb5 {[%clk
0:02:37.6]} 18. Bxg7 {[%clk 0:02:15.4]} 18... Kxg7 {[%clk 0:02:37.7]} 19. h4
{[%clk 0:02:12.6]} 19... Bxe2 {[%clk 0:02:37.6]} 20. Qxe2 {[%clk 0:02:13.3]}
20... Rc5 {[%clk 0:02:33.5]} 21. h5 {[%clk 0:02:09.2]} 21... Rfc8 {[%clk
0:02:24.1]} 22. Rc1 {[%clk 0:01:21.3]} 22... Rxd5 {[%clk 0:01:31]} 23. Qxe7
{[%clk 0:01:05.4]} 23... Qc7 {[%clk 0:00:51.9]} 24. Qe4 {[%clk 0:00:54.4]} 24...
Rd2 {[%clk 0:00:52.6]} 25. hxg6 {[%clk 0:00:43.5]} 25... hxg6 {[%clk 0:00:52.3]}
26. g5 {[%clk 0:00:43.7]} 26... d5 {[%clk 0:00:39.9]} 27. Qxb4 {[%clk
0:00:40.5]} 27... Rxc2 {[%clk 0:00:35.6]} 28. Qd4+ {[%clk 0:00:40.7]} 28... Kf8
{[%clk 0:00:27.2]} 29. Rh8+ {[%clk 0:00:40.7]} 29... Ke7 {[%clk 0:00:28.6]} 30.
Qf6+ {[%clk 0:00:40.2]} 30... Kd7 {[%clk 0:00:27.4]} 31. Qxf7+ {[%clk
0:00:40.8]} 31... Kd6 {[%clk 0:00:28.8]} 32. Qxc7+ {[%clk 0:00:37.8]} 32...
R2xc7 {[%clk 0:00:27.8]} 33. Rxc8 {[%clk 0:00:38.1]} 1-0

[Event "***Titled Tuesday 3|2 Blitz"]
[Site "Chess.com"]
[Date "2017.02.07"]
[Round "1"]
[White "capatl"]
[Black "wonderfultime"]
[Result "0-1"]
[WhiteElo "2359"]
[BlackElo "2650"]
[TimeControl "180+2"]
[EndTime "13:07:53 PST"]
[Termination "wonderfultime won by resignation"]

1. c4 {[%clk 0:02:55.4]} 1... Nf6 {[%clk 0:02:56.6]} 2. Nc3 {[%clk 0:02:54.4]}
2... c5 {[%clk 0:02:38.8]} 3. Nf3 {[%clk 0:02:49.7]} 3... Nc6 {[%clk 0:02:38.5]}
4. d4 {[%clk 0:02:47.4]} 4... cxd4 {[%clk 0:02:38.5]} 5. Nxd4 {[%clk 0:02:47.2]}
5... e6 {[%clk 0:02:36.4]} 6. e3 {[%clk 0:02:37]} 6... Bb4 {[%clk 0:02:32]} 7.
Bd2 {[%clk 0:02:28.3]} 7... O-O {[%clk 0:02:31.5]} 8. a3 {[%clk 0:02:19.2]} 8...
Bc5 {[%clk 0:02:23.9]} 9. Nxc6 {[%clk 0:02:14]} 9... bxc6 {[%clk 0:02:22.4]} 10.
b4 {[%clk 0:02:15]} 10... Be7 {[%clk 0:02:22.5]} 11. c5 {[%clk 0:02:13.4]} 11...
d6 {[%clk 0:02:20.7]} 12. cxd6 {[%clk 0:02:13.2]} 12... Bxd6 {[%clk 0:02:22.6]}
13. Be2 {[%clk 0:02:02.8]} 13... c5 {[%clk 0:02:07.4]} 14. Nb5 {[%clk
0:01:52.9]} 14... Be7 {[%clk 0:01:52]} 15. bxc5 {[%clk 0:01:44.6]} 15... Bxc5
{[%clk 0:01:52.4]} 16. Rc1 {[%clk 0:01:43.6]} 16... Be7 {[%clk 0:01:45.1]} 17.
Bf3 {[%clk 0:01:32.5]} 17... Nd5 {[%clk 0:01:45.1]} 18. O-O {[%clk 0:01:23.9]}
18... a6 {[%clk 0:01:42.1]} 19. Bxd5 {[%clk 0:01:01.4]} 19... exd5 {[%clk
0:01:35]} 20. Nc7 {[%clk 0:00:59.8]} 20... Ra7 {[%clk 0:01:34.7]} 21. Ba5 {[%clk
0:00:58.8]} 21... Bxa3 {[%clk 0:01:33.8]} 22. Ra1 {[%clk 0:00:51.8]} 22... Bd6
{[%clk 0:00:57.1]} 23. Nxd5 {[%clk 0:00:42.4]} 23... Qg5 {[%clk 0:00:51.2]} 24.
Nf4 {[%clk 0:00:38.8]} 24... Rd7 {[%clk 0:00:43.1]} 25. Qc1 {[%clk 0:00:28.2]}
25... Bb7 {[%clk 0:00:41.9]} 26. f3 {[%clk 0:00:26]} 26... Rc8 {[%clk
0:00:40.1]} 27. Qb2 {[%clk 0:00:24.4]} 27... Be5 {[%clk 0:00:38.9]} 28. h4
{[%clk 0:00:17.3]} 28... Qxf4 {[%clk 0:00:37.1]} 29. Qxb7 {[%clk 0:00:12.7]}
29... Qh2+ {[%clk 0:00:37.4]} 0-1

[Event "***Titled Tuesday 3|2 Blitz"]
[Site "Chess.com"]
[Date "2017.02.07"]
[Round "1"]
[White "RoelandPruijssers"]
[Black "ChristopherYoo"]
[Result "1-0"]
[WhiteElo "2487"]
[BlackElo "2086"]
[TimeControl "180+2"]
[EndTime "13:08:07 PST"]
[Termination "RoelandPruijssers won by resignation"]

1. e4 {[%clk 0:03:02]} 1... e5 {[%clk 0:02:59.5]} 2. Nf3 {[%clk 0:02:57.5]} 2...
Nc6 {[%clk 0:03:00]} 3. Bb5 {[%clk 0:02:56.9]} 3... Nf6 {[%clk 0:02:59.7]} 4. d3
{[%clk 0:02:57.2]} 4... Bc5 {[%clk 0:02:59.8]} 5. c3 {[%clk 0:02:57.9]} 5... d6
{[%clk 0:02:51.1]} 6. O-O {[%clk 0:02:54.1]} 6... O-O {[%clk 0:02:44.2]} 7. h3
{[%clk 0:02:50.1]} 7... h6 {[%clk 0:02:40.9]} 8. Re1 {[%clk 0:02:49.4]} 8... a6
{[%clk 0:02:32.5]} 9. Ba4 {[%clk 0:02:48.9]} 9... Ba7 {[%clk 0:02:30.4]} 10.
Nbd2 {[%clk 0:02:41.1]} 10... Ne7 {[%clk 0:02:28.9]} 11. Nf1 {[%clk 0:02:16.3]}
11... Ng6 {[%clk 0:02:27.6]} 12. Ng3 {[%clk 0:02:17.3]} 12... Kh7 {[%clk
0:01:40.5]} 13. d4 {[%clk 0:02:14.5]} 13... b5 {[%clk 0:01:28]} 14. Bc2 {[%clk
0:02:14.7]} 14... c5 {[%clk 0:01:24.2]} 15. Be3 {[%clk 0:02:14.7]} 15... Qc7
{[%clk 0:01:21.4]} 16. Qd2 {[%clk 0:02:09.8]} 16... Re8 {[%clk 0:01:12.8]} 17.
Rad1 {[%clk 0:01:53.9]} 17... Bd7 {[%clk 0:00:50.4]} 18. dxe5 {[%clk 0:01:40.2]}
18... dxe5 {[%clk 0:00:47.5]} 19. Nf5 {[%clk 0:01:28.6]} 19... Bxf5 {[%clk
0:00:31.5]} 20. exf5 {[%clk 0:01:29.1]} 20... Nf8 {[%clk 0:00:32.1]} 21. Nh2
{[%clk 0:01:11.8]} 21... Rad8 {[%clk 0:00:30.7]} 22. Qe2 {[%clk 0:01:12.6]}
22... Rxd1 {[%clk 0:00:19.3]} 23. Rxd1 {[%clk 0:01:10.4]} 23... N8d7 {[%clk
0:00:19.4]} 24. Ng4 {[%clk 0:01:04.2]} 24... Rd8 {[%clk 0:00:16]} 25. Qd2 {[%clk
0:00:59.2]} 25... Bb6 {[%clk 0:00:11.2]} 26. Nxf6+ {[%clk 0:00:52.6]} 26... gxf6
{[%clk 0:00:08.5]} 27. Qe2 {[%clk 0:00:47.1]} 27... Nb8 {[%clk 0:00:05]} 28. Qh5
{[%clk 0:00:39.7]} 28... Rxd1+ {[%clk 0:00:05.7]} 29. Bxd1 {[%clk 0:00:40.9]}
29... Qd6 {[%clk 0:00:06.3]} 30. Bxh6 {[%clk 0:00:35.3]} 30... Qxd1+ {[%clk
0:00:05.4]} 31. Qxd1 {[%clk 0:00:35.5]} 31... Kxh6 {[%clk 0:00:07]} 32. Qd6
{[%clk 0:00:36]} 32... Ba7 {[%clk 0:00:08]} 33. Qxf6+ {[%clk 0:00:35.7]} 33...
Kh7 {[%clk 0:00:09.4]} 34. Qxf7+ {[%clk 0:00:36.6]} 1-0